[Event "*** Titled Tuesday 3|2 Blitz"]
[Site "Chess.com"]
[Date "2017.03.07"]
[Round "5"]
[White "AdrianaNikolova"]
[Black "Blitzstream"]
[Result "1-0"]
[WhiteElo "2335"]
[BlackElo "2477"]
[TimeControl "180+2"]
[EndTime "14:13:25 PST"]
[Termination "AdrianaNikolova won by checkmate"]

1. e4 {[%clk 0:03:01.9]} 1... d5 {[%clk 0:03:00.9]} 2. exd5 {[%clk 0:03:02.1]}
2... Qxd5 {[%clk 0:03:02.8]} 3. Nc3 {[%clk 0:03:01.4]} 3... Qa5 {[%clk
0:03:03.9]} 4. d4 {[%clk 0:03:01]} 4... Nf6 {[%clk 0:03:05]} 5. Nf3 {[%clk
0:03:02.5]} 5... c6 {[%clk 0:03:05.8]} 6. Bc4 {[%clk 0:03:01.4]} 6... Bf5 {[%clk
0:03:06.8]} 7. Bd2 {[%clk 0:03:01.1]} 7... e6 {[%clk 0:03:07.5]} 8. Nd5 {[%clk
0:02:58.7]} 8... Qd8 {[%clk 0:03:08.1]} 9. Nxf6+ {[%clk 0:02:59.5]} 9... Qxf6
{[%clk 0:03:10]} 10. c3 {[%clk 0:02:58.6]} 10... Bd6 {[%clk 0:03:10.4]} 11. h3
{[%clk 0:02:50.1]} 11... h6 {[%clk 0:03:05.8]} 12. Qe2 {[%clk 0:02:50.3]} 12...
Bg6 {[%clk 0:03:02.1]} 13. Ne5 {[%clk 0:02:50.1]} 13... Bxe5 {[%clk 0:02:29.3]}
14. dxe5 {[%clk 0:02:49.4]} 14... Qf5 {[%clk 0:02:30.7]} 15. O-O {[%clk
0:02:36.3]} 15... Qe4 {[%clk 0:02:24.8]} 16. f4 {[%clk 0:02:17.6]} 16... Nd7
{[%clk 0:02:03.7]} 17. Be3 {[%clk 0:01:59.1]} 17... Nb6 {[%clk 0:01:56.3]} 18.
Bb3 {[%clk 0:01:08.4]} 18... O-O-O {[%clk 0:01:56.8]} 19. Qf2 {[%clk 0:00:59.2]}
19... Kc7 {[%clk 0:01:49]} 20. Rae1 {[%clk 0:00:47.3]} 20... Qd3 {[%clk
0:01:42.1]} 21. Bc5 {[%clk 0:00:40.1]} 21... Bf5 {[%clk 0:01:13.7]} 22. Bd6+
{[%clk 0:00:34.8]} 22... Kc8 {[%clk 0:01:14.4]} 23. a4 {[%clk 0:00:29.4]} 23...
Qa6 {[%clk 0:01:04.3]} 24. g4 {[%clk 0:00:24.1]} 24... Bd3 {[%clk 0:01:03.3]}
25. a5 {[%clk 0:00:22.9]} 25... Nc4 {[%clk 0:00:57.2]} 26. Bxc4 {[%clk
0:00:13.2]} 26... Bxc4 {[%clk 0:00:59.1]} 27. b4 {[%clk 0:00:14.4]} 27... h5
{[%clk 0:00:55.1]} 28. g5 {[%clk 0:00:13.1]} 28... g6 {[%clk 0:00:52.3]} 29. Kh2
{[%clk 0:00:09.2]} 29... Rd7 {[%clk 0:00:51.8]} 30. Rg1 {[%clk 0:00:09]} 30...
Bd5 {[%clk 0:00:50.4]} 31. Rg3 {[%clk 0:00:07.9]} 31... Rhd8 {[%clk 0:00:47.7]}
32. Qc5 {[%clk 0:00:08.1]} 32... b6 {[%clk 0:00:39.4]} 33. axb6 {[%clk
0:00:09.5]} 33... axb6 {[%clk 0:00:41.3]} 34. Qe3 {[%clk 0:00:06.9]} 34... Kb7
{[%clk 0:00:39.5]} 35. Rgg1 {[%clk 0:00:06.3]} 35... Ra8 {[%clk 0:00:37.9]} 36.
h4 {[%clk 0:00:05.5]} 36... Qa2+ {[%clk 0:00:33.7]} 37. Re2 {[%clk 0:00:06.8]}
37... Qc4 {[%clk 0:00:35]} 38. Rge1 {[%clk 0:00:07]} 38... Ra3 {[%clk
0:00:35.8]} 39. Qd4 {[%clk 0:00:07.9]} 39... Rxc3 {[%clk 0:00:22.4]} 40. Qxc4
{[%clk 0:00:07.9]} 40... Rxc4 {[%clk 0:00:24.3]} 41. Ra1 {[%clk 0:00:08.1]}
41... Rxf4 {[%clk 0:00:22.7]} 42. Re3 {[%clk 0:00:09.1]} 42... Rxh4+ {[%clk
0:00:20.7]} 43. Kg3 {[%clk 0:00:09.2]} 43... Rg4+ {[%clk 0:00:21.9]} 44. Kh3
{[%clk 0:00:10.5]} 44... c5 {[%clk 0:00:20.6]} 45. b5 {[%clk 0:00:09.4]} 45...
Bc4 {[%clk 0:00:16.7]} 46. Rea3 {[%clk 0:00:09.8]} 46... Bxb5 {[%clk 0:00:17.5]}
47. Ra8 {[%clk 0:00:09.1]} 47... Kc6 {[%clk 0:00:19.1]} 48. Rd1 {[%clk
0:00:05.1]} 48... Rd4 {[%clk 0:00:18.2]} 49. Rda1 {[%clk 0:00:05.8]} 49... Kd5
{[%clk 0:00:18.8]} 50. Rf8 {[%clk 0:00:06.2]} 50... Rd3+ {[%clk 0:00:18.3]} 51.
Kh2 {[%clk 0:00:06.5]} 51... Bc6 {[%clk 0:00:19.5]} 52. Ra6 {[%clk 0:00:06.1]}
52... Rb3 {[%clk 0:00:18.3]} 53. Rb8 {[%clk 0:00:06.5]} 53... Rb7 {[%clk
0:00:17.2]} 54. Rc8 {[%clk 0:00:07.1]} 54... c4 {[%clk 0:00:17.3]} 55. Ra1
{[%clk 0:00:05.2]} 55... Rd3 {[%clk 0:00:17.1]} 56. Rc1 {[%clk 0:00:06]} 56...
b5 {[%clk 0:00:17.2]} 57. Bf8 {[%clk 0:00:05.4]} 57... c3 {[%clk 0:00:16]} 58.
Rd8+ {[%clk 0:00:03.3]} 58... Rd7 {[%clk 0:00:16.8]} 59. Rc8 {[%clk 0:00:04.2]}
59... Rd2+ {[%clk 0:00:15.7]} 60. Kg3 {[%clk 0:00:04.7]} 60... c2 {[%clk
0:00:14.9]} 61. Bb4 {[%clk 0:00:06.2]} 61... Re2 {[%clk 0:00:15.5]} 62. Kf3
{[%clk 0:00:07.1]} 62... Rh2 {[%clk 0:00:15.1]} 63. Kg3 {[%clk 0:00:08.1]} 63...
Re2 {[%clk 0:00:16.3]} 64. Kf3 {[%clk 0:00:08.8]} 64... Rxe5 {[%clk 0:00:15.2]}
65. Rxc2 {[%clk 0:00:09]} 65... Rf5+ {[%clk 0:00:12.5]} 66. Kg3 {[%clk
0:00:10.3]} 66... Bb7 {[%clk 0:00:09.1]} 67. R8c5+ {[%clk 0:00:08.1]} 67... Ke4
{[%clk 0:00:09.6]} 68. Re2+ {[%clk 0:00:06.9]} 68... Kd4 {[%clk 0:00:09.3]} 69.
Rd2+ {[%clk 0:00:07.6]} 69... Ke3 {[%clk 0:00:10.7]} 70. Rxd7 {[%clk 0:00:08.4]}
70... Rf3+ {[%clk 0:00:12]} 71. Kh2 {[%clk 0:00:07.5]} 71... Rf2+ {[%clk
0:00:12.9]} 72. Kg3 {[%clk 0:00:06.8]} 72... Rf3+ {[%clk 0:00:12]} 73. Kh2
{[%clk 0:00:08]} 73... Rf2+ {[%clk 0:00:12.4]} 74. Kg1 {[%clk 0:00:09.6]} 74...
Rg2+ {[%clk 0:00:13.6]} 75. Kf1 {[%clk 0:00:10.7]} 75... Rb2 {[%clk 0:00:14]}
76. Rc3+ {[%clk 0:00:08.9]} 76... Ke4 {[%clk 0:00:15.4]} 77. Bc5 {[%clk
0:00:07.5]} 77... b4 {[%clk 0:00:14.5]} 78. Rd4+ {[%clk 0:00:08.2]} 78... Ke5
{[%clk 0:00:15.3]} 79. Rxb4 {[%clk 0:00:10]} 79... Ba6+ {[%clk 0:00:16.7]} 80.
Ke1 {[%clk 0:00:09.6]} 80... Re2+ {[%clk 0:00:17.6]} 81. Kd1 {[%clk 0:00:10.7]}
81... Rg2 {[%clk 0:00:19.2]} 82. Bd4+ {[%clk 0:00:10]} 82... Kf5 {[%clk
0:00:19.5]} 83. Bf6 {[%clk 0:00:11.5]} 83... Be2+ {[%clk 0:00:19.4]} 84. Ke1
{[%clk 0:00:12]} 84... Ba6 {[%clk 0:00:13.9]} 85. Rc5+ {[%clk 0:00:12.5]} 85...
e5 {[%clk 0:00:15.2]} 86. Rxe5# {[%clk 0:00:13.4]} 1-0

[Event "*** Titled Tuesday 3|2 Blitz"]
[Site "Chess.com"]
[Date "2017.03.07"]
[Round "5"]
[White "Yaacovn"]
[Black "Gergo85"]
[Result "1-0"]
[WhiteElo "2591"]
[BlackElo "2427"]
[TimeControl "180+2"]
[EndTime "14:16:02 PST"]
[Termination "Yaacovn won by resignation"]

1. d4 {[%clk 0:03:01.9]} 1... Nf6 {[%clk 0:02:56.5]} 2. Nf3 {[%clk 0:03:03.3]}
2... g6 {[%clk 0:02:57.9]} 3. c4 {[%clk 0:03:04.7]} 3... Bg7 {[%clk 0:02:59.2]}
4. Nc3 {[%clk 0:03:06]} 4... d5 {[%clk 0:03:00.8]} 5. cxd5 {[%clk 0:03:07.1]}
5... Nxd5 {[%clk 0:03:02.7]} 6. g3 {[%clk 0:03:09]} 6... Nxc3 {[%clk 0:03:00.4]}
7. bxc3 {[%clk 0:03:10.9]} 7... c5 {[%clk 0:03:01.9]} 8. Bg2 {[%clk 0:03:12.4]}
8... O-O {[%clk 0:03:02.6]} 9. O-O {[%clk 0:03:13.7]} 9... Nd7 {[%clk
0:03:02.5]} 10. e3 {[%clk 0:03:14.9]} 10... Nf6 {[%clk 0:03:03.3]} 11. Ba3
{[%clk 0:03:15.8]} 11... Ne4 {[%clk 0:02:47.9]} 12. Qc2 {[%clk 0:03:06.1]} 12...
Qa5 {[%clk 0:02:22.1]} 13. Bc1 {[%clk 0:02:54.2]} 13... Qxc3 {[%clk 0:01:54.8]}
14. Qxc3 {[%clk 0:02:39.3]} 14... Nxc3 {[%clk 0:01:55.4]} 15. Ba3 {[%clk
0:02:35.7]} 15... Ne2+ {[%clk 0:01:27.5]} 16. Kh1 {[%clk 0:02:34.9]} 16... cxd4
{[%clk 0:01:29.4]} 17. exd4 {[%clk 0:02:32]} 17... Nxd4 {[%clk 0:01:26.2]} 18.
Nxd4 {[%clk 0:02:28.9]} 18... Bxd4 {[%clk 0:01:28.1]} 19. Rac1 {[%clk
0:02:26.6]} 19... Bf6 {[%clk 0:01:01.4]} 20. Rc7 {[%clk 0:02:26.9]} 20... Be6
{[%clk 0:00:43.6]} 21. Rxb7 {[%clk 0:02:19.8]} 21... a5 {[%clk 0:00:21.3]} 22.
Bxe7 {[%clk 0:02:18.2]} 22... Bxe7 {[%clk 0:00:22.2]} 23. Rxe7 {[%clk
0:02:20.1]} 23... Ra6 {[%clk 0:00:23.2]} 24. a3 {[%clk 0:02:17.7]} 24... Rb8
{[%clk 0:00:21.6]} 25. Kg1 {[%clk 0:02:08.1]} 25... Rb3 {[%clk 0:00:22.2]} 26.
Ra1 {[%clk 0:02:09.2]} 26... Kg7 {[%clk 0:00:19.8]} 27. h4 {[%clk 0:02:10.2]}
27... h5 {[%clk 0:00:20.3]} 28. Rc7 {[%clk 0:02:07]} 28... Kf6 {[%clk
0:00:12.3]} 29. a4 {[%clk 0:02:08.2]} 29... Rb4 {[%clk 0:00:13]} 30. Bf1 {[%clk
0:02:09.4]} 30... Rd6 {[%clk 0:00:13.1]} 31. Ra7 {[%clk 0:02:07.7]} 31... Rd2
{[%clk 0:00:13]} 32. Rxa5 {[%clk 0:01:48.4]} 32... Rbb2 {[%clk 0:00:14.1]} 33.
Rb5 {[%clk 0:01:50]} 33... Rbc2 {[%clk 0:00:11.1]} 34. a5 {[%clk 0:01:44.9]}
34... Rxf2 {[%clk 0:00:11.9]} 35. a6 {[%clk 0:01:46.5]} 35... Rf3 {[%clk
0:00:13.2]} 36. a7 {[%clk 0:01:31.9]} 36... Rxg3+ {[%clk 0:00:14.3]} 37. Kh1
{[%clk 0:01:32.2]} 37... Rc8 {[%clk 0:00:09]} 38. Rb8 {[%clk 0:01:29.3]} 38...
Bd5+ {[%clk 0:00:08.5]} 39. Kh2 {[%clk 0:01:30.5]} 39... Rcc3 {[%clk 0:00:09.4]}
40. a8=Q {[%clk 0:01:25.5]} 40... Bxa8 {[%clk 0:00:09.4]} 41. Rbxa8 {[%clk
0:01:26.6]} 41... Rge3 {[%clk 0:00:10.2]} 42. R8a2 {[%clk 0:01:21.2]} 42... Kg7
{[%clk 0:00:09.4]} 43. Bg2 {[%clk 0:01:14.7]} 43... Rc4 {[%clk 0:00:09]} 44. Ra4
{[%clk 0:01:15.2]} 44... Rc7 {[%clk 0:00:08.7]} 45. Rf1 {[%clk 0:01:15.3]} 45...
Rce7 {[%clk 0:00:09.1]} 46. Raf4 {[%clk 0:01:15.9]} 46... Rc3 {[%clk 0:00:10]}
47. R1f2 {[%clk 0:01:16.7]} 47... Rcc7 {[%clk 0:00:10.9]} 48. Bd5 {[%clk
0:01:17.7]} 48... Rcd7 {[%clk 0:00:10.9]} 49. Bc4 {[%clk 0:01:18.2]} 49... Rc7
{[%clk 0:00:12.2]} 50. Kg2 {[%clk 0:01:18.4]} 50... Rb7 {[%clk 0:00:13.2]} 51.
Bd5 {[%clk 0:01:19.4]} 51... Rbc7 {[%clk 0:00:14.4]} 52. Bf3 {[%clk 0:01:20.9]}
52... Rcd7 {[%clk 0:00:15.4]} 53. Kg3 {[%clk 0:01:22.4]} 53... Rc7 {[%clk
0:00:16.7]} 54. Rb2 {[%clk 0:01:23.5]} 54... Rcd7 {[%clk 0:00:17.7]} 55. Rb6
{[%clk 0:01:24.8]} 55... Rc7 {[%clk 0:00:18.4]} 56. Rb5 {[%clk 0:01:22.7]} 56...
Rcd7 {[%clk 0:00:19]} 57. Rg5 {[%clk 0:01:24]} 57... Rd3 {[%clk 0:00:15.6]} 58.
Kf2 {[%clk 0:01:24.3]} 58... Rd2+ {[%clk 0:00:16.1]} 59. Kg3 {[%clk 0:01:25.3]}
59... Rd3 {[%clk 0:00:17.4]} 60. Rb5 {[%clk 0:01:24.7]} 60... Rdd7 {[%clk
0:00:18]} 61. Ra4 {[%clk 0:01:25.7]} 61... Rc7 {[%clk 0:00:18.7]} 62. Rb8 {[%clk
0:01:26.7]} 62... Rc3 {[%clk 0:00:18.7]} 63. Rf4 {[%clk 0:01:25.9]} 63... Rcc7
{[%clk 0:00:19.8]} 64. Ra8 {[%clk 0:01:26.9]} 64... Rcd7 {[%clk 0:00:20.6]} 65.
Kf2 {[%clk 0:01:27.2]} 65... Rc7 {[%clk 0:00:21.5]} 66. Rb4 {[%clk 0:01:27.6]}
66... Rc2+ {[%clk 0:00:22.2]} 67. Kg3 {[%clk 0:01:28.8]} 67... Rc3 {[%clk
0:00:23.6]} 68. Rf4 {[%clk 0:01:26.7]} 68... Rcc7 {[%clk 0:00:24.4]} 69. Rb8
{[%clk 0:01:27.5]} 69... Rcd7 {[%clk 0:00:25.4]} 70. Be4 {[%clk 0:01:26.6]}
70... Rc7 {[%clk 0:00:26]} 71. Rb3 {[%clk 0:01:26.2]} 71... Ra7 {[%clk 0:00:26]}
72. Rbf3 {[%clk 0:01:27.1]} 72... Rac7 {[%clk 0:00:26.6]} 73. Bb1 {[%clk
0:01:28.1]} 73... Rcd7 {[%clk 0:00:27.2]} 74. Ba2 {[%clk 0:01:29.1]} 74... Rc7
{[%clk 0:00:28.1]} 75. Bd5 {[%clk 0:01:29.3]} 75... Rcd7 {[%clk 0:00:29.2]} 76.
Bc4 {[%clk 0:01:30.4]} 76... Rc7 {[%clk 0:00:30.5]} 77. Rd4 {[%clk 0:01:31.7]}
77... Rb7 {[%clk 0:00:31.1]} 78. Rfd3 {[%clk 0:01:29.6]} 78... Rbc7 {[%clk
0:00:32]} 79. Bd5 {[%clk 0:01:30.7]} 79... Ra7 {[%clk 0:00:32.7]} 80. Bf3 {[%clk
0:01:32.1]} 80... Rac7 {[%clk 0:00:33.1]} 81. Rb4 {[%clk 0:01:33.1]} 81... Ra7
{[%clk 0:00:34]} 82. Rdb3 {[%clk 0:01:34.3]} 82... Rac7 {[%clk 0:00:34.8]} 83.
Rb8 {[%clk 0:01:35.1]} 83... Ra7 {[%clk 0:00:34.8]} 84. Rc8 {[%clk 0:01:36.2]}
84... Ra4 {[%clk 0:00:28.8]} 85. Rbb8 {[%clk 0:01:31.8]} 85... Ra3 {[%clk
0:00:24.3]} 86. Rg8+ {[%clk 0:01:32.6]} 86... Kf6 {[%clk 0:00:25.5]} 87. Rb6+
{[%clk 0:01:33.9]} 87... Re6 {[%clk 0:00:26.1]} 88. Rxe6+ {[%clk 0:01:33.2]}
88... Kxe6 {[%clk 0:00:28]} 89. Rb8 {[%clk 0:01:34.1]} 89... Kf6 {[%clk
0:00:24.5]} 90. Rb6+ {[%clk 0:01:34.9]} 90... Kg7 {[%clk 0:00:25.5]} 91. Kf4
{[%clk 0:01:34.7]} 91... Ra7 {[%clk 0:00:25.7]} 92. Be4 {[%clk 0:01:35.1]} 92...
Re7 {[%clk 0:00:26.4]} 93. Ra6 {[%clk 0:01:35.6]} 93... Rd7 {[%clk 0:00:27.1]}
94. Rb6 {[%clk 0:01:35.5]} 94... Re7 {[%clk 0:00:28.2]} 95. Bd5 {[%clk
0:01:36.9]} 95... Rd7 {[%clk 0:00:28.9]} 96. Ke5 {[%clk 0:01:38.1]} 96... Re7+
{[%clk 0:00:29.6]} 97. Kd6 {[%clk 0:01:39.4]} 97... Ra7 {[%clk 0:00:29.4]} 98.
Kc5 {[%clk 0:01:37.7]} 98... Ra5+ {[%clk 0:00:22.9]} 99. Kd4 {[%clk 0:01:37.6]}
99... Ra4+ {[%clk 0:00:23.3]} 100. Bc4 {[%clk 0:01:39.1]} 100... Ra7 {[%clk
0:00:24.5]} 101. Rd6 {[%clk 0:01:39.4]} 101... Re7 {[%clk 0:00:24.9]} 102. Bd5
{[%clk 0:01:40.3]} 102... Ra7 {[%clk 0:00:25.2]} 103. Rb6 {[%clk 0:01:41.5]}
103... Ra4+ {[%clk 0:00:25.3]} 104. Bc4 {[%clk 0:01:42]} 104... Ra7 {[%clk
0:00:26.3]} 105. Kc5 {[%clk 0:01:43.1]} 105... Re7 {[%clk 0:00:25]} 106. Bd5
{[%clk 0:01:44]} 106... Ra7 {[%clk 0:00:23.9]} 107. Kd6 {[%clk 0:01:44.7]}
107... Ra4 {[%clk 0:00:24.8]} 108. Rb7 {[%clk 0:01:43.6]} 108... Rxh4 {[%clk
0:00:25.2]} 109. Rxf7+ {[%clk 0:01:43.4]} 109... Kh6 {[%clk 0:00:26.4]} 110. Ke5
{[%clk 0:01:43.9]} 110... Rh2 {[%clk 0:00:24.4]} 111. Rf1 {[%clk 0:01:41.8]}
111... Re2+ {[%clk 0:00:24.4]} 112. Be4 {[%clk 0:01:41.5]} 112... Rb2 {[%clk
0:00:22.6]} 113. Rf6 {[%clk 0:01:40.8]} 113... Rb5+ {[%clk 0:00:21.6]} 114. Kf4
{[%clk 0:01:41.6]} 114... Rg5 {[%clk 0:00:20.2]} 115. Rf8 {[%clk 0:01:42.5]}
115... Rg4+ {[%clk 0:00:21.2]} 116. Kf3 {[%clk 0:01:44]} 116... Kg5 {[%clk
0:00:20]} 117. Rf7 {[%clk 0:01:44.7]} 117... Rg1 {[%clk 0:00:18.5]} 118. Kf2
{[%clk 0:01:45.1]} 118... Rg4 {[%clk 0:00:18.7]} 119. Kf3 {[%clk 0:01:46]}
119... Rg1 {[%clk 0:00:19.6]} 120. Ra7 {[%clk 0:01:46.9]} 120... Rf1+ {[%clk
0:00:19.8]} 121. Ke3 {[%clk 0:01:48.3]} 121... Rf6 {[%clk 0:00:20.4]} 122. Ra5+
{[%clk 0:01:49.2]} 122... Kh6 {[%clk 0:00:20.9]} 123. Ra7 {[%clk 0:01:49.1]}
123... Kg5 {[%clk 0:00:21.8]} 124. Rg7 {[%clk 0:01:48.5]} 124... Re6 {[%clk
0:00:20]} 125. Rg8 {[%clk 0:01:47.9]} 125... Rf6 {[%clk 0:00:21]} 126. Kd4
{[%clk 0:01:49]} 126... Rb6 {[%clk 0:00:14.9]} 127. Ke5 {[%clk 0:01:48]} 127...
Rb5+ {[%clk 0:00:14.5]} 128. Kd4 {[%clk 0:01:49.5]} 128... Rb6 {[%clk
0:00:15.6]} 129. Ra8 {[%clk 0:01:49.1]} 129... Rf6 {[%clk 0:00:15.8]} 130. Ra1
{[%clk 0:01:49.4]} 130... Kh6 {[%clk 0:00:16.3]} 131. Ke5 {[%clk 0:01:50.5]}
131... Rb6 {[%clk 0:00:17.2]} 132. Bd5 {[%clk 0:01:51.3]} 132... Rb8 {[%clk
0:00:16.5]} 133. Kf6 {[%clk 0:01:50.9]} 133... Rb6+ {[%clk 0:00:16.5]} 134. Be6
{[%clk 0:01:52.1]} 134... Rb2 {[%clk 0:00:15.4]} 135. Rf1 {[%clk 0:01:52.8]}
135... Rb4 {[%clk 0:00:14.6]} 136. Rg1 {[%clk 0:01:51.1]} 136... Rf4+ {[%clk
0:00:14.8]} 137. Ke5 {[%clk 0:01:52.5]} 137... Rf2 {[%clk 0:00:15]} 138. Bd5
{[%clk 0:01:53.4]} 138... Rf5+ {[%clk 0:00:15.5]} 139. Ke6 {[%clk 0:01:54.2]}
139... Rg5 {[%clk 0:00:14.3]} 140. Rh1 {[%clk 0:01:54.8]} 140... Rg3 {[%clk
0:00:15]} 141. Be4 {[%clk 0:01:55.4]} 141... Kg5 {[%clk 0:00:13.9]} 142. Ke5
{[%clk 0:01:55.6]} 142... Rg4 {[%clk 0:00:11.9]} 143. Rc1 {[%clk 0:01:55.5]}
143... Kh6 {[%clk 0:00:10.3]} 144. Rc6 {[%clk 0:01:56]} 144... Rg1 {[%clk
0:00:10.4]} 145. Rc8 {[%clk 0:01:55.4]} 145... Kg5 {[%clk 0:00:08.5]} 146. Bxg6
{[%clk 0:01:55.4]} 146... h4 {[%clk 0:00:04.9]} 147. Be4 {[%clk 0:01:53.1]}
147... Kg4 {[%clk 0:00:05]} 148. Rg8+ {[%clk 0:01:54]} 148... Kh3 {[%clk
0:00:06.3]} 149. Rxg1 {[%clk 0:01:54.9]} 149... Kh2 {[%clk 0:00:07.5]} 150. Rg2+
{[%clk 0:01:55.7]} 150... Kh3 {[%clk 0:00:07.6]} 151. Rg5 {[%clk 0:01:56.8]}
151... Kh2 {[%clk 0:00:08.8]} 152. Kf4 {[%clk 0:01:57.9]} 152... h3 {[%clk
0:00:10.2]} 153. Kf3 {[%clk 0:01:58.9]} 153... Kh1 {[%clk 0:00:10.9]} 154. Kg3+
{[%clk 0:01:57.2]} 154... Kg1 {[%clk 0:00:10.4]} 155. Rd5 {[%clk 0:01:56.5]} 1-0

[Event "*** Titled Tuesday 3|2 Blitz"]
[Site "Chess.com"]
[Date "2017.03.07"]
[Round "6"]
[White "aa175"]
[Black "StellarChessPro"]
[Result "0-1"]
[WhiteElo "1850"]
[BlackElo "2334"]
[TimeControl "180+2"]
[EndTime "14:20:13 PST"]
[Termination "StellarChessPro won by checkmate"]

1. e4 {[%clk 0:03:02]} 1... e5 {[%clk 0:03:00.7]} 2. Nf3 {[%clk 0:03:01.1]} 2...
Nc6 {[%clk 0:03:01.9]} 3. Bc4 {[%clk 0:03:00]} 3... Nf6 {[%clk 0:03:02.4]} 4.
Ng5 {[%clk 0:02:59.1]} 4... d5 {[%clk 0:03:03.5]} 5. exd5 {[%clk 0:03:01]} 5...
Na5 {[%clk 0:03:04.6]} 6. Bb5+ {[%clk 0:03:02.8]} 6... c6 {[%clk 0:03:06]} 7.
dxc6 {[%clk 0:03:04.6]} 7... bxc6 {[%clk 0:03:07.8]} 8. Bd3 {[%clk 0:03:06.1]}
8... h6 {[%clk 0:03:09.4]} 9. Ne4 {[%clk 0:02:38.9]} 9... Nxe4 {[%clk
0:03:10.1]} 10. Bxe4 {[%clk 0:02:38.9]} 10... Bc5 {[%clk 0:03:12]} 11. O-O
{[%clk 0:02:26.9]} 11... O-O {[%clk 0:03:12.3]} 12. Nc3 {[%clk 0:02:22]} 12...
f5 {[%clk 0:03:13.3]} 13. Bf3 {[%clk 0:02:22.4]} 13... e4 {[%clk 0:03:14.7]} 14.
Be2 {[%clk 0:02:23.5]} 14... Bd6 {[%clk 0:03:15.9]} 15. a3 {[%clk 0:02:24.6]}
15... Qh4 {[%clk 0:03:16.4]} 16. h3 {[%clk 0:02:25.5]} 16... Rf6 {[%clk
0:03:13.1]} 17. Kh1 {[%clk 0:02:08.1]} 17... Rg6 {[%clk 0:03:10.6]} 18. b4
{[%clk 0:02:07.7]} 18... f4 {[%clk 0:03:10.4]} 19. bxa5 {[%clk 0:02:03.2]} 19...
Bxh3 {[%clk 0:03:11.2]} 20. Bc4+ {[%clk 0:02:00]} 20... Be6+ {[%clk 0:03:01.8]}
21. Kg1 {[%clk 0:01:59]} 21... Bxc4 {[%clk 0:03:03.3]} 22. Nxe4 {[%clk
0:01:57.3]} 22... f3 {[%clk 0:03:02.1]} 23. Ng3 {[%clk 0:01:45.9]} 23... Bxf1
{[%clk 0:02:53.9]} 24. Qxf3 {[%clk 0:01:44.4]} 24... Rf8 {[%clk 0:02:47.3]} 25.
Qxc6 {[%clk 0:01:37.2]} 25... Bxg3 {[%clk 0:02:45.3]} 26. Qxg6 {[%clk
0:01:34.2]} 26... Qh2+ {[%clk 0:02:43.1]} 27. Kxf1 {[%clk 0:01:35.3]} 27...
Rxf2+ {[%clk 0:02:43.9]} 28. Ke1 {[%clk 0:01:34.9]} 28... Qg1# {[%clk
0:02:44.8]} 0-1

[Event "*** Titled Tuesday 3|2 Blitz"]
[Site "Chess.com"]
[Date "2017.03.07"]
[Round "6"]
[White "SantoBlue"]
[Black "proxy6"]
[Result "1-0"]
[WhiteElo "2431"]
[BlackElo "2168"]
[TimeControl "180+2"]
[EndTime "14:20:47 PST"]
[Termination "SantoBlue won by resignation"]

1. Nf3 {[%clk 0:03:00.1]} 1... Nf6 {[%clk 0:03:00.8]} 2. c4 {[%clk 0:03:01.4]}
2... e6 {[%clk 0:03:02]} 3. b3 {[%clk 0:03:02.6]} 3... d5 {[%clk 0:03:00.8]} 4.
Bb2 {[%clk 0:03:03.8]} 4... Be7 {[%clk 0:03:02.3]} 5. g3 {[%clk 0:03:04.9]} 5...
O-O {[%clk 0:03:03.7]} 6. Bg2 {[%clk 0:03:06.6]} 6... c5 {[%clk 0:02:59.8]} 7.
cxd5 {[%clk 0:03:05]} 7... exd5 {[%clk 0:02:59]} 8. O-O {[%clk 0:03:06.2]} 8...
Nc6 {[%clk 0:02:56.9]} 9. d4 {[%clk 0:03:07.5]} 9... Be6 {[%clk 0:02:46]} 10.
dxc5 {[%clk 0:03:06]} 10... Bxc5 {[%clk 0:02:47.9]} 11. Nc3 {[%clk 0:03:07.4]}
11... Qe7 {[%clk 0:02:33.2]} 12. Rc1 {[%clk 0:03:04.5]} 12... Rfd8 {[%clk
0:02:32.8]} 13. Ng5 {[%clk 0:03:01.4]} 13... Ba3 {[%clk 0:02:15]} 14. Bxa3
{[%clk 0:03:02.2]} 14... Qxa3 {[%clk 0:02:16.8]} 15. Nxe6 {[%clk 0:03:03.6]}
15... fxe6 {[%clk 0:02:17.2]} 16. e4 {[%clk 0:02:50.7]} 16... dxe4 {[%clk
0:02:15.6]} 17. Qe1 {[%clk 0:02:51.6]} 17... Nd4 {[%clk 0:02:04.7]} 18. Nxe4
{[%clk 0:02:51.4]} 18... Nxe4 {[%clk 0:02:01.3]} 19. Qxe4 {[%clk 0:02:51.7]}
19... Qxa2 {[%clk 0:02:02]} 20. Rc7 {[%clk 0:02:48.6]} 20... Qxb3 {[%clk
0:01:58.2]} 21. Qe5 {[%clk 0:02:37.5]} 21... Nf5 {[%clk 0:01:10.1]} 22. g4
{[%clk 0:02:37.7]} 1-0

[Event "*** Titled Tuesday 3|2 Blitz"]
[Site "Chess.com"]
[Date "2017.03.07"]
[Round "6"]
[White "iturrizaga"]
[Black "GM_Splinter"]
[Result "1-0"]
[WhiteElo "2647"]
[BlackElo "2250"]
[TimeControl "180+2"]
[EndTime "14:21:12 PST"]
[Termination "iturrizaga won by resignation"]

1. Nf3 {[%clk 0:03:02]} 1... f5 {[%clk 0:03:00.1]} 2. c4 {[%clk 0:03:03.9]} 2...
Nf6 {[%clk 0:03:00.9]} 3. g3 {[%clk 0:03:05.8]} 3... g6 {[%clk 0:03:01.9]} 4.
Bg2 {[%clk 0:03:07.7]} 4... Bg7 {[%clk 0:03:03.5]} 5. O-O {[%clk 0:03:09.2]}
5... O-O {[%clk 0:03:04.5]} 6. Nc3 {[%clk 0:03:10.4]} 6... d6 {[%clk 0:03:04.8]}
7. d4 {[%clk 0:03:11]} 7... Nc6 {[%clk 0:03:01.6]} 8. b3 {[%clk 0:02:53]} 8...
e5 {[%clk 0:02:56.8]} 9. dxe5 {[%clk 0:02:44.6]} 9... Nxe5 {[%clk 0:02:06.6]}
10. Nxe5 {[%clk 0:02:44.7]} 10... dxe5 {[%clk 0:02:07.9]} 11. Ba3 {[%clk
0:02:46.6]} 11... Re8 {[%clk 0:02:08.7]} 12. Qxd8 {[%clk 0:02:08.4]} 12... Rxd8
{[%clk 0:02:09.2]} 13. Rfd1 {[%clk 0:02:07.5]} 13... Rxd1+ {[%clk 0:01:28.4]}
14. Rxd1 {[%clk 0:02:09.4]} 14... c6 {[%clk 0:01:16.8]} 15. Rd8+ {[%clk
0:02:08.6]} 15... Kf7 {[%clk 0:01:18]} 16. e4 {[%clk 0:02:09.8]} 16... f4 {[%clk
0:01:08.2]} 17. Bh3 {[%clk 0:02:00.6]} 1-0